bitfinex/quotes_ETHUSD_20211001
["timestamp","ask_amount","ask_price","bid_price","bid_amount"]
[1633117107141,0.8728891,3292.8,3292.1,0.012]
[1633117107341,1.23349825,3292.2,3292.1,0.012]
[1633117107541,0.8728891,3292.8,3292.1,0.012]
[1633117107941,3.03676,3292.4,3292.1,0.012]
[1633117108344,3.03676,3292.4,3291.8,0.015]
[1633117108546,3.0372364,3292.1,3291.8,0.015]
[1633117108741,1.27644577,3292.0,3291.8,0.015]
[1633117108942,2.09583048,3292.0,3291.8,0.015]
[1633117109343,2.09583048,3292.0,3291.1,0.003]
[1633117109344,5.26200632,3291.7,3291.1,0.003]
[1633117109543,5.26200632,3291.7,3291.2,0.003]
[1633117109745,0.035961,3291.6,3290.6,0.006]
[1633117109942,1.26226566,3291.5,3290.4,4.55677]
[1633117110344,1.26226566,3291.5,3290.5,0.009]
[1633117110345,0.75533756,3290.8,3290.5,0.009]
[1633117110744,0.75533756,3290.8,3289.3,0.015]
[1633117111010,0.75533756,3290.8,3289.5,4.55797]
[1633117111011,2.98275973,3290.7,3289.5,4.55797]
[1633117111150,1.50442688,3290.1,3289.5,1.5166888]
[1633117111342,1.50442688,3290.1,3289.9,0.93093547]
[1633117111742,1.50442688,3290.1,3290.0,0.012]
[1633117112146,6.0774647,3290.5,3290.0,0.012]
[1633117112343,6.0774647,3290.5,3289.3,0.015]
[1633117112947,11.2818,3291.0,3289.3,0.015]
[1633117112948,0.0584215,3291.5,3290.3,0.91252861]
[1633117113153,1.15894519,3290.5,3290.3,5.46957861]
[1633117113344,1.15894519,3290.5,3290.4,0.009]
[1633117113749,1.15894519,3290.5,3290.1,0.009]
[1633117114344,1.15894519,3290.5,3290.3,0.97446726]
[1633117114545,1.15894519,3290.5,3290.3,5.53139726]
[1633117114746,1.15894519,3290.5,3290.4,0.009]
[1633117115147,1.15894519,3290.5,3290.3,0.009]
[1633117115746,1.18005737,3290.5,3290.3,0.009]
[1633117116146,1.18005737,3290.5,3290.1,0.88448401]
[1633117116350,1.18005737,3290.5,3290.2,0.009]
[1633117116746,0.02111218,3290.5,3290.2,0.009]
[1633117117549,0.02111218,3290.5,3290.3,4.55707]
[1633117117947,0.02111218,3290.5,3290.4,1.35631364]
[1633117118148,0.02111218,3290.5,3290.4,0.009]
[1633117120348,0.84950115,3291.0,3290.6,4.55673]
[1633117120747,0.84950115,3291.0,3290.7,0.006]
[1633117121148,0.84950115,3291.0,3290.6,4.51273]
[1633117121348,0.87072335,3291.0,3290.6,4.51273]
[1633117124253,0.0212222,3291.0,3290.6,4.51273]
[1633117125256,0.96401394,3291.0,3290.6,4.51273]
[1633117125652,3.98093844,3291.0,3290.5,0.003]
[1633117125853,3.98093844,3291.0,3290.7,0.26537799]
[1633117126052,1.35861341,3290.9,3290.7,0.26537799]
[1633117126657,1.35861341,3290.9,3290.2,0.003]
[1633117126851,1.37982354,3290.9,3290.2,0.003]
[1633117127053,1.37982354,3290.9,3290.2,4.56055]
[1633117127254,1.37982354,3290.9,3290.2,4.55755]
[1633117127452,1.37982354,3290.9,3290.3,0.003]
[1633117128052,1.37982354,3290.9,3290.1,0.79582243]
[1633117128254,1.37982354,3290.9,3290.5,4.55713]
[1633117128453,0.02121013,3290.9,3290.5,4.55713]
[1633117128655,0.02121013,3290.9,3290.5,4.56013]
[1633117131254,1.99745887,3291.0,3290.6,0.26541111]
[1633117131454,1.99745887,3291.0,3290.7,4.55693]
[1633117131654,1.99745887,3291.0,3290.6,0.26541111]
[1633117132055,1.17497909,3291.0,3290.6,0.26541111]
[1633117132256,0.02121027,3291.0,3290.5,1.06866325]
[1633117132458,0.02121027,3291.0,3290.5,0.003]
[1633117132857,0.02121027,3291.0,3290.2,0.003]
[1633117133456,0.02121027,3291.0,3290.6,1.29255984]
[1633117133657,0.02121027,3291.0,3290.8,4.55655]
[1633117134463,7.87375996,3290.9,3290.8,4.55655]
[1633117134659,0.92375996,3290.9,3290.8,4.55655]
[1633117135119,0.92375996,3290.9,3290.6,4.55713]
[1633117136721,1.09207042,3291.2,3290.6,4.55713]
[1633117136921,1.09207042,3291.2,3290.7,0.26539455]
[1633117137322,1.09207042,3291.2,3290.9,4.55673]
[1633117137522,1.09207042,3291.2,3290.7,0.26539455]
[1633117137724,0.02125923,3291.1,3290.5,0.003]
[1633117138524,0.02125923,3291.1,3290.9,4.55675]
[1633117138725,0.02125923,3291.1,3290.9,5.4220801]
[1633117139924,0.02125923,3291.1,3290.9,4.55675]
[1633117141929,0.02125923,3291.1,3290.8,6.0753]
[1633117142129,0.02125923,3291.1,3290.5,0.003]
[1633117142335,4.55751,3291.2,3291.0,0.26532831]
[1633117143133,3.03834,3291.1,3291.0,0.26532831]
[1633117143332,0.95079596,3290.6,3290.4,0.003]
[1633117143530,3.05961158,3291.1,3290.4,6.07612]
[1633117143931,3.05961158,3291.1,3290.5,0.003]
[1633117144133,0.02127158,3291.1,3290.6,1.35524814]
[1633117144334,0.02127158,3291.1,3291.0,10.324587]
[1633117144534,0.02127158,3291.1,3291.0,2.58886625]
[1633117144734,0.003,3291.5,3291.1,12.5]
[1633117145134,0.003,3291.5,3291.3,1.90185154]
[1633117145334,0.003,3291.5,3291.2,1.54735012]
[1633117145535,0.003,3291.5,3291.3,1.294]
[1633117145733,0.003,3291.5,3291.2,1.54735012]
[1633117146136,0.003,3291.5,3291.3,4.55465]
[1633117146534,0.003,3291.5,3291.4,1.294]
[1633117146933,0.003,3291.5,3291.3,4.55465]
[1633117147735,5.25443032,3291.7,3291.6,0.86658668]
[1633117148537,5.27049495,3291.7,3291.6,0.86658668]
[1633117149337,5.27049495,3291.7,3291.6,5.42087668]
[1633117149941,5.27049495,3291.7,3291.6,6.97037668]
[1633117150940,5.17049495,3291.7,3291.6,6.97037668]
[1633117151541,5.17049495,3291.7,3291.6,6.10379]
[1633117151744,5.17049495,3291.7,3291.6,4.55429]
[1633117153144,5.17049495,3291.7,3291.6,5.84829]
[1633117153344,5.15443032,3291.7,3291.6,5.84829]
[1633117153945,5.17049495,3291.7,3291.6,5.84829]
[1633117155947,5.17049495,3291.7,3291.6,4.55429]
[1633117158749,5.15443032,3291.7,3291.6,4.55429]
[1633117159348,5.17049494,3291.7,3291.6,4.55429]
[1633117164351,5.15443032,3291.7,3291.6,4.55429]
[1633117164750,5.17049494,3291.7,3291.6,4.55429]
[1633117169756,5.15443032,3291.7,3291.6,4.55429]
[1633117170359,5.17049494,3291.7,3291.6,4.55429]
[1633117174761,6.6767157,3291.7,3291.6,4.55429]
[1633117175363,6.66065108,3291.7,3291.6,4.55429]
[1633117175764,6.6767157,3291.7,3291.6,4.55429]
[1633117178166,6.6767157,3291.7,3291.6,5.41005084]
[1633117178368,5.17049494,3291.7,3291.6,5.41005084]
[1633117180031,5.17049494,3291.7,3291.6,4.55429]
[1633117180772,5.15443032,3291.7,3291.6,4.55429]
[1633117180971,5.87293227,3291.7,3291.6,4.55429]
[1633117181375,5.88899688,3291.7,3291.6,4.55429]
[1633117181575,5.17049493,3291.7,3291.6,4.55429]
[1633117186382,5.15443032,3291.7,3291.6,4.55429]
[1633117186783,5.17049493,3291.7,3291.6,4.55429]
[1633117189045,5.88268454,3291.7,3291.6,4.55429]
[1633117189383,5.17049493,3291.7,3291.6,4.55429]
[1633117189983,5.17049493,3291.7,3291.6,5.920273]
[1633117190185,5.17049493,3291.7,3291.6,4.89184894]
[1633117190383,5.17049493,3291.7,3291.6,4.626273]
[1633117191185,6.35949455,3291.7,3291.6,4.626273]
[1633117191583,5.17049493,3291.7,3291.6,4.626273]
[1633117191787,5.15443032,3291.7,3291.6,4.626273]
[1633117192383,5.17049493,3291.7,3291.6,4.626273]
[1633117192583,5.16000713,3291.7,3291.6,4.626273]
[1633117199192,5.16000713,3291.7,3291.6,4.55429]
[1633117201797,5.08654213,3291.7,3291.6,4.55429]
[1633117204706,1.20060286,3292.0,3291.7,17.72242099]
[1633117204707,0.003,3292.0,3291.7,17.72242099]
[1633117204900,0.003,3292.0,3291.8,0.29030304]
[1633117205101,0.003,3293.0,3291.9,13.05]
[1633117205300,0.003,3293.0,3292.1,1.5176083]
[1633117205499,0.003,3293.0,3292.2,5.70993224]
[1633117205500,1.44304998,3292.8,3292.2,5.70993224]
[1633117205699,0.003,3293.0,3292.2,5.70993224]
[1633117206099,0.003,3293.0,3292.2,6.00014906]
[1633117206898,0.003,3293.0,3292.2,4.84304682]
[1633117207099,0.003,3293.0,3292.2,7.87826682]
[1633117207305,0.003,3293.0,3292.2,3.32543682]
[1633117207501,0.003,3293.0,3292.2,3.03522]
[1633117208299,0.003,3293.0,3292.3,4.55311]
[1633117208501,1.48338198,3292.8,3292.3,4.55311]
[1633117209701,1.48338198,3292.8,3292.3,6.05311]
[1633117209908,0.003,3293.0,3292.3,6.05311]
[1633117210501,0.83493614,3292.9,3292.3,6.05311]
[1633117210902,1.2098778,3292.4,3292.3,6.05311]
[1633117211501,0.83493614,3292.9,3292.3,6.05311]
[1633117212106,0.038961,3292.5,3292.3,1.5]
[1633117212301,13.05,3292.4,3292.1,0.29054232]
[1633117212506,4.67242099,3291.7,3291.2,0.85279529]
[1633117212703,4.67242099,3291.7,3291.3,0.003]
[1633117212902,0.74596598,3291.6,3291.5,4.55569]
[1633117213105,0.74596598,3291.6,3291.3,6.07394]
[1633117213305,0.74596598,3291.6,3291.5,0.003]
[1633117213504,2.15763266,3291.6,3291.4,0.003]
[1633117213902,3.73113266,3291.6,3291.4,0.003]
[1633117214106,3.73113266,3291.6,3290.9,4.55649]
[1633117214505,3.73113266,3291.6,3291.0,0.006]
[1633117214703,2.34946867,3291.1,3291.0,0.006]
[1633117214902,0.94900593,3291.1,3291.0,0.006]
[1633117215109,0.94900593,3291.1,3290.6,0.006]
[1633117215303,0.94900593,3291.1,3290.8,4.55617]
[1633117215703,0.94900593,3291.1,3290.9,0.006]
[1633117215903,4.70788064,3291.7,3290.9,0.006]
[1633117216172,4.67242099,3291.7,3290.9,0.006]
[1633117216372,4.67242099,3291.7,3290.6,6.07517]
[1633117216373,4.67242099,3291.7,3291.2,4.55584]
[1633117216574,1.34208703,3291.5,3291.2,4.55584]
[1633117216772,0.003,3291.5,3291.2,4.55584]
[1633117218573,0.003,3291.5,3290.7,0.28795591]
[1633117218774,0.003,3291.5,3290.2,0.071922]
[1633117218972,0.003,3291.5,3290.3,0.003]
[1633117219372,0.003,3291.5,3290.3,1.30917471]
[1633117219576,0.84076328,3291.2,3290.7,0.98863807]
[1633117219773,3.0406685,3291.5,3290.8,4.55661]
[1633117219973,3.07248006,3291.5,3290.8,4.55661]
[1633117221175,3.07248006,3291.5,3290.7,6.07498]
[1633117221176,1.44892678,3290.9,3290.7,6.07498]
[1633117221374,1.44892678,3290.9,3290.4,0.003]
[1633117221574,1.44892678,3290.9,3290.5,0.003]
[1633117221975,1.44892678,3290.9,3290.6,4.55645]
[1633117222185,0.003,3291.5,3290.6,4.55645]
[1633117222982,0.80417755,3291.0,3290.6,4.55645]
[1633117223178,0.003,3291.5,3290.6,4.55645]
[1633117223378,1.14782433,3291.1,3290.6,4.55645]
[1633117223780,0.003,3291.5,3290.6,4.55645]
[1633117224180,0.78701499,3291.3,3290.6,4.55645]
[1633117224780,1.50251155,3291.2,3290.6,4.55645]
[1633117226782,1.50251155,3291.2,3290.7,0.28402952]
[1633117226985,1.50251155,3291.2,3290.7,4.84072952]
[1633117227184,0.03046974,3291.4,3290.7,4.84072952]
[1633117227387,0.003,3291.5,3290.7,4.84072952]
[1633117227586,0.003,3291.5,3291.2,0.074177]
[1633117227984,0.003,3291.5,3291.2,6.07364]
[1633117228191,0.8320356,3291.3,3291.2,6.07364]
[1633117228984,0.003,3291.5,3291.2,6.07364]
[1633117229986,0.003,3291.5,3291.1,6.07387]
[1633117229987,0.92158481,3291.4,3291.1,6.07387]
[1633117230187,0.92158481,3291.4,3290.7,0.28402952]
[1633117230389,0.92158481,3291.4,3291.2,4.55597]
[1633117230590,1.19504393,3291.3,3291.2,4.55597]
[1633117230792,1.19504393,3291.3,3290.9,6.07463]
[1633117231191,0.003,3291.5,3291.4,8.17158481]
[1633117231393,0.003,3291.5,3291.4,10.94384526]
[1633117231591,0.003,3291.5,3291.4,3.72976954]
[1633117231990,0.003,3291.5,3291.4,7.02976954]
[1633117232189,0.003,3291.5,3291.4,9.3818883]
[1633117232389,0.003,3291.5,3291.4,13.9358283]
[1633117232590,0.003,3291.5,3291.4,14.50908114]
[1633117232991,4.67242099,3291.7,3291.5,13.05]
[1633117233191,4.67242099,3291.7,3291.5,16.37503151]
[1633117233397,4.67242099,3291.7,3291.5,3.32503151]
[1633117233594,4.67242099,3291.7,3291.6,4.55357]
[1633117234198,0.003,3292.0,3291.8,3.03586]
[1633117234395,0.003,3292.0,3291.9,0.91149955]
[1633117234595,0.003,3292.0,3291.9,8.50098955]
[1633117235193,0.003,3292.0,3291.9,8.79030216]
[1633117235394,0.003,3292.0,3291.9,10.18814543]
[1633117237196,0.003,3292.0,3291.9,9.27664588]
[1633117237396,0.035961,3292.7,3291.9,4.72297588]
[1633117237600,0.035961,3292.7,3292.0,0.003]
[1633117237796,0.035961,3292.7,3292.0,0.28653292]
[1633117237995,0.035961,3292.7,3292.2,3.03572]
[1633117238197,0.82676781,3292.5,3292.4,4.55433]
[1633117238601,0.82676781,3292.5,3292.2,3.03572]
[1633117238997,1.20228289,3292.4,3292.0,6.35914292]
[1633117239200,1.20228289,3292.4,3292.0,0.28653292]
[1633117239597,13.085961,3292.1,3292.0,0.28653292]
[1633117239799,5.435961,3292.1,3292.0,0.28653292]
[1633117242398,0.035961,3292.1,3292.0,0.28653292]
[1633117242800,4.085961,3292.1,3292.0,0.28653292]
[1633117243067,6.5518166,3292.1,3292.0,0.28653292]
[1633117243201,6.5018166,3292.1,3292.0,0.28653292]
[1633117243402,6.5382196,3292.1,3292.0,0.003]
[1633117243603,6.53820627,3292.1,3292.0,0.003]
[1633117243804,6.53820627,3292.1,3291.5,0.003]
[1633117243805,1.96059445,3291.7,3291.5,0.006]
[1633117244000,0.036403,3292.1,3291.5,0.006]
[1633117244001,4.592503,3292.1,3291.5,0.006]
[1633117244603,11.7334,3292.3,3291.5,0.006]
[1633117245001,0.83139852,3292.0,3291.5,0.006]
[1633117245204,1.50296003,3291.8,3291.5,0.006]
[1633117245403,11.7334,3292.3,3291.7,4.55533]
[1633117245604,0.036403,3292.5,3291.7,4.55533]
[1633117245802,0.036403,3292.5,3291.8,0.003]
[1633117246603,1.08061322,3291.7,3291.6,0.003]
[1633117247203,3.0373353,3292.4,3291.6,0.003]
[1633117247404,0.036403,3292.0,3291.6,0.003]
[1633117247804,4.55642,3291.9,3291.6,0.003]
[1633117248406,4.1429839,3291.7,3291.6,0.003]
[1633117248607,0.7929839,3291.7,3291.6,0.003]
[1633117250011,0.036403,3292.0,3291.6,0.003]
[1633117250810,5.7261286,3291.9,3291.6,0.003]
[1633117251010,5.87615321,3291.7,3291.6,0.003]
[1633117251212,0.92615321,3291.7,3291.6,0.003]
[1633117252083,0.036403,3292.0,3291.6,0.003]
[1633117252214,0.036403,3292.6,3291.6,0.003]
[1633117252412,2.46561999,3292.5,3291.6,0.003]
[1633117253011,0.97057691,3291.9,3291.6,0.003]
[1633117253211,2.0847093,3291.9,3291.6,0.003]
[1633117253812,0.92057691,3291.9,3291.6,0.003]
[1633117254216,0.92057691,3291.9,3291.7,0.28374806]
[1633117254613,0.92057691,3291.9,3291.8,0.003]
[1633117255081,2.06892467,3291.9,3291.8,0.003]
[1633117255412,6.62520467,3291.9,3291.8,0.003]
[1633117255812,2.06892467,3291.9,3291.8,0.003]
[1633117256013,1.14834776,3291.9,3291.8,0.003]
[1633117257014,1.18475076,3291.9,3291.8,0.003]
[1633117259814,1.18475076,3291.9,3291.8,0.28671496]
[1633117260819,9.11158,3292.6,3291.8,0.28671496]
[1633117261087,15.13403563,3292.7,3292.1,0.079913]
[1633117261088,11.82,3292.7,3292.1,0.079913]
[1633117261419,11.82,3292.7,3292.1,4.634423]
[1633117261618,11.75117834,3292.9,3292.2,2.50205641]
[1633117262022,11.75117834,3292.9,3292.3,3.79194633]
[1633117262218,1.38012437,3292.6,3292.3,3.79194633]
[1633117262818,1.38012437,3292.6,3292.5,4.55426]
[1633117263017,0.003,3293.0,3292.7,3.03575]
[1633117264217,1.28323289,3292.8,3292.7,3.03575]
[1633117264417,1.28323289,3292.8,3292.7,9.10717]
[1633117264620,0.003,3293.0,3292.7,9.10717]
[1633117264817,0.003,3293.0,3292.8,2.53613402]
[1633117265216,0.003,3293.0,3292.7,9.10717]
[1633117265419,0.003,3293.0,3292.9,0.28336749]
[1633117265623,0.003,3293.0,3292.9,3.56919157]
[1633117265817,0.003,3293.0,3292.9,4.73099847]
[1633117267622,0.003,3293.0,3292.9,6.02499847]
[1633117267821,0.003,3293.0,3292.9,8.83169985]
[1633117268222,0.003,3293.0,3292.9,9.12025532]
[1633117269020,0.003,3293.0,3292.9,15.19125532]
[1633117269223,0.003,3293.5,3293.0,13.05]
[1633117269423,0.003,3293.5,3293.4,13.129913]
[1633117269624,0.003,3293.5,3293.4,1.308913]
[1633117269826,0.003,3293.5,3293.4,3.9107504]
[1633117270087,0.003,3293.5,3293.4,5.860273]
[1633117270824,0.003,3293.5,3293.4,7.154273]
[1633117271424,0.003,3293.5,3293.4,9.52959064]
[1633117271827,0.003,3293.5,3293.4,7.07436]
[1633117273227,0.003,3293.5,3293.4,8.44149182]
[1633117274227,0.003,3293.5,3293.4,7.14749182]
[1633117276088,0.003,3293.5,3293.4,9.64579276]
[1633117276227,0.003,3293.5,3293.4,10.93979276]
[1633117276429,0.003,3293.5,3293.4,8.80334339]
[1633117276630,0.003,3293.5,3293.4,7.50934339]
[1633117277431,0.003,3293.5,3293.4,9.72761945]
[1633117277640,0.003,3293.5,3293.4,8.43361945]
[1633117278633,0.003,3293.5,3293.4,9.72761945]
[1633117280032,0.003,3293.5,3293.4,8.43361945]
[1633117280237,0.003,3293.5,3293.4,9.72761945]
[1633117281334,0.003,3293.5,3293.4,9.57761945]
[1633117281933,0.003,3293.5,3293.4,9.29443388]
[1633117282541,0.003,3294.0,3293.5,8.0]
[1633117282738,0.003,3294.0,3293.6,2.4616189]
[1633117282935,0.003,3294.0,3293.9,1.19065142]
[1633117283535,0.003,3294.0,3293.8,7.02394383]
[1633117283735,0.003,3294.0,3293.8,4.55195]
[1633117283938,0.003,3294.0,3293.8,7.01292458]
[1633117284938,0.003,3294.0,3293.8,2.46097458]
[1633117285141,0.003,3294.0,3293.7,2.45433023]
[1633117285342,0.003,3294.0,3293.6,3.03459]
[1633117285937,0.003,3294.0,3293.6,9.09010567]
[1633117286537,0.003,3294.0,3293.6,6.03748567]
[1633117287338,0.003,3294.0,3293.7,4.8354833]
[1633117287944,0.83966139,3293.8,3293.7,0.2830533]
[1633117288342,11.28966139,3293.8,3293.7,0.2830533]
[1633117288742,0.83966139,3293.8,3293.7,0.2830533]
[1633117292808,0.036403,3293.9,3293.7,1.74102638]
[1633117293008,0.003,3294.0,3293.8,2.71845945]
[1633117293810,0.003,3294.0,3293.9,6.10788644]
[1633117294008,0.003,3294.0,3293.9,5.25946644]
[1633117295610,0.003,3294.0,3293.9,4.55158]
[1633117298612,0.003,3294.0,3293.8,6.1806484]
[1633117300811,0.003,3294.0,3293.8,0.1118784]
[1633117301016,10.936403,3293.9,3293.8,0.1118784]
[1633117301611,4.589963,3293.9,3293.8,0.1118784]
[1633117302215,9.189963,3293.9,3293.8,0.1118784]
[1633117302612,4.589963,3293.9,3293.8,0.1118784]
[1633117304013,0.036403,3293.9,3293.8,0.1118784]
[1633117306120,13.086403,3293.9,3293.8,7.84e-05]
[1633117307118,19.158903,3293.9,3293.8,7.84e-05]
[1633117307315,34.158903,3293.9,3293.8,7.84e-05]
[1633117307515,19.158903,3293.9,3293.8,7.84e-05]
[1633117308720,6.108903,3293.9,3293.8,7.84e-05]
[1633117308917,0.036403,3293.9,3293.8,7.84e-05]
[1633117309117,3.986403,3293.9,3293.8,7.84e-05]
[1633117312120,36.746403,3293.9,3293.8,7.84e-05]
[1633117312319,21.746403,3293.9,3293.8,7.84e-05]
[1633117312519,36.746403,3293.9,3293.8,7.84e-05]
[1633117312719,21.746403,3293.9,3293.8,7.84e-05]
[1633117313119,3.986403,3293.9,3293.8,0.2831317]
[1633117313323,0.036403,3293.9,3293.8,0.2831317]
[1633117317925,5.47939161,3294.0,3293.8,0.2831317]
[1633117318726,5.47939161,3294.0,3293.8,7.84e-05]
[1633117324033,5.47939161,3294.0,3293.9,0.28303677]
[1633117324236,7.94414919,3294.0,3293.9,0.28303677]
[1633117326537,7.94409644,3294.0,3293.9,0.28303677]
[1633117329733,7.94409644,3294.0,3293.8,7.84e-05]
[1633117329933,0.92511161,3294.0,3293.8,7.84e-05]
[1633117330335,0.65105,3294.0,3293.9,1.294]
[1633117331638,0.003,3294.5,3294.0,13.05]
[1633117331843,0.003,3294.5,3294.4,13.15522701]
[1633117332036,0.003,3294.5,3294.4,4.65556701]
[1633117332436,0.003,3294.5,3294.4,7.10914652]
[1633117333236,0.003,3294.5,3294.4,8.40314652]
[1633117333834,0.003,3294.5,3294.4,8.40114652]
[1633117335636,0.003,3294.5,3294.4,5.86765401]
[1633117335838,0.003,3294.5,3294.4,1.294]
[1633117336637,1.33878926,3294.5,3294.4,1.294]
[1633117336839,0.003,3294.5,3294.4,1.294]
[1633117337042,0.003,3294.5,3294.4,2.794]
[1633117338040,1.35683718,3294.5,3294.4,2.794]
[1633117338240,0.003,3294.5,3294.4,2.794]
[1633117341844,1.0727298,3294.5,3294.4,2.794]
[1633117342107,0.003,3294.5,3294.4,2.794]
[1633117342645,0.003,3294.5,3294.4,1.5]
[1633117343446,0.74724374,3294.5,3294.4,1.5]
[1633117343847,4.44431717,3294.5,3294.4,1.5]
[1633117345648,17.49431717,3294.5,3294.4,0.26008975]
[1633117346048,17.81464226,3294.5,3294.4,0.26008975]
[1633117346248,7.85271189,3294.5,3294.4,0.26008975]
[1633117347048,4.76464226,3294.5,3294.4,0.26008975]
[1633117347455,4.02039852,3294.5,3294.4,8.975e-05]
[1633117347650,17.60447653,3294.5,3294.4,8.975e-05]
[1633117347851,20.18641866,3294.5,3294.4,8.975e-05]
[1633117348113,37.94641866,3294.5,3294.4,8.975e-05]
[1633117348450,38.84287358,3294.5,3294.4,8.975e-05]
[1633117348650,43.63318408,3294.5,3294.4,8.975e-05]
[1633117348853,25.02490418,3294.5,3294.4,8.975e-05]
[1633117349052,11.97490418,3294.5,3294.4,8.975e-05]
[1633117349655,15.58420796,3294.5,3294.4,0.28294471]
[1633117349854,13.05,3294.4,3293.8,7.84e-05]
[1633117350057,4.20590502,3294.2,3293.8,7.84e-05]
[1633117350254,2.46448398,3294.1,3293.8,7.84e-05]
[1633117350851,0.24127261,3294.0,3293.8,7.84e-05]
[1633117351051,4.55379,3294.0,3293.8,7.84e-05]
[1633117351253,4.95595496,3294.0,3293.8,7.84e-05]
[1633117352054,0.14473136,3294.0,3293.8,7.84e-05]
[1633117352660,10.35,3293.9,3293.2,4.3035284]
[1633117352855,10.35,3293.9,3292.8,0.006]
[1633117353055,10.35,3293.9,3293.3,0.003]
[1633117353256,0.45463569,3294.0,3293.3,0.003]
[1633117353257,0.72791241,3293.4,3293.3,0.003]
[1633117353655,0.72791241,3293.4,3293.0,0.003]
[1633117353656,0.72791241,3293.4,3293.0,0.006]
[1633117354117,0.72791241,3293.4,3292.8,0.006]
[1633117354654,0.72791241,3293.4,3292.8,1.17290064]
[1633117355055,0.72791241,3293.4,3292.9,0.006]
[1633117355258,0.72791241,3293.4,3292.9,0.14787385]
[1633117355454,0.72791241,3293.4,3292.9,0.14187385]
[1633117355655,0.72791241,3293.4,3293.0,0.006]
[1633117356657,0.1445487,3293.3,3293.0,0.006]
[1633117357123,0.1445487,3293.3,3292.9,0.006]
[1633117357259,0.1445487,3293.3,3292.6,0.006]
[1633117357861,0.1445487,3293.3,3292.6,1.12373267]
[1633117358259,0.1445487,3293.3,3292.7,0.006]
[1633117359060,0.1445487,3293.3,3292.7,4.56024]
[1633117359461,0.1445487,3293.3,3292.8,0.006]
[1633117360121,0.1445487,3293.3,3292.7,0.006]
[1633117360463,0.1445487,3293.3,3292.9,4.55399]
[1633117360659,0.72791241,3293.4,3292.9,4.55399]
[1633117360859,0.33962025,3293.9,3293.0,0.006]
[1633117361061,0.32180579,3294.0,3293.0,0.006]
[1633117361260,2.78903315,3293.9,3293.0,0.006]
[1633117361460,0.036403,3294.0,3292.9,0.006]
[1633117361660,1.31945893,3293.5,3292.9,0.006]
[1633117361860,2.06763352,3293.5,3292.9,0.006]
[1633117362263,0.14454884,3293.4,3292.9,0.006]
[1633117362461,0.14454884,3293.4,3292.7,0.006]
[1633117364061,0.14454884,3293.4,3293.0,0.80705109]
[1633117364462,0.14454884,3293.4,3293.1,0.003]
[1633117364862,0.14454884,3293.4,3293.2,1.11773443]
[1633117365063,0.14454884,3293.4,3293.2,5.67097443]
[1633117365266,0.14454884,3293.4,3293.3,0.003]
[1633117366461,0.99031081,3293.8,3293.3,0.14479116]
[1633117366865,0.25141962,3293.9,3293.4,0.003]
[1633117367064,0.21952615,3293.9,3293.4,0.003]
[1633117367662,0.14465867,3293.8,3293.4,0.003]
[1633117367862,1.08101299,3293.8,3293.4,0.003]
[1633117368663,1.08101299,3293.8,3293.3,0.003]
[1633117369667,1.08101299,3293.8,3293.2,0.003]
[1633117370064,1.08101299,3293.8,3293.1,0.003]
[1633117370265,1.35031863,3293.2,3293.1,0.003]
[1633117370467,1.08101299,3293.8,3292.7,4.56029]
[1633117370468,4.55433,3293.5,3292.7,4.56029]
[1633117370665,1.08101299,3293.8,3292.7,4.56029]
[1633117370867,0.03571895,3293.6,3292.8,0.006]
[1633117371066,1.08101299,3293.8,3293.1,0.83633765]
[1633117371466,1.34187729,3293.6,3293.2,0.003]
[1633117372126,1.34187729,3293.6,3293.2,0.14475809]
[1633117372264,5.89603729,3293.6,3293.2,0.14475809]
[1633117372567,5.89603729,3293.6,3293.3,0.003]
[1633117373369,0.14462225,3293.6,3293.3,0.003]
[1633117373567,0.14462225,3293.6,3293.1,0.003]
[1633117374566,0.14462225,3293.6,3293.4,1.11607574]
[1633117374766,0.14462225,3293.6,3293.4,5.66952574]
[1633117374967,0.14462225,3293.6,3293.5,0.003]
[1633117375767,0.14462225,3293.6,3293.1,0.003]
[1633117376367,0.14462225,3293.6,3293.5,1.51528127]
[1633117376567,0.14462225,3293.6,3293.5,2.40149208]
[1633117376768,0.14462225,3293.6,3293.5,2.40449208]
[1633117376967,0.14462225,3293.6,3293.5,0.003]
[1633117377369,3.95925558,3293.9,3293.6,0.14170848]
[1633117377769,0.92317558,3293.9,3293.6,0.14170848]
[1633117378370,1.26305613,3294.1,3293.6,0.14170848]
[1633117378574,2.46445408,3294.0,3293.6,1.5]
[1633117378769,0.14468332,3293.8,3293.6,1.5]
[1633117379169,4.69860332,3293.8,3293.6,1.5]
[1633117379370,0.14468332,3293.8,3293.6,1.5]
[1633117379574,0.11430712,3293.8,3293.7,9.53955756]
[1633117379770,0.003,3294.5,3293.8,13.0803762]
[1633117379973,0.003,3294.5,3294.4,13.07558347]
[1633117380275,1.19706102,3295.5,3294.4,13.07558347]
[1633117380276,2.97237238,3295.7,3295.6,0.003]
[1633117380472,2.46,3295.7,3295.6,4.40349653]
[1633117380670,2.46,3295.7,3295.6,7.21068969]
[1633117380671,1.96828017,3295.7,3295.6,7.21068969]
[1633117381143,0.006,3296.2,3296.0,0.88549402]
[1633117381276,2.466,3296.2,3296.1,7.41979277]
[1633117381477,2.466,3296.2,3296.1,8.71379277]
[1633117381670,2.466,3296.2,3296.1,9.81662992]
[1633117381869,2.466,3296.2,3296.1,7.04822786]
[1633117382071,2.466,3296.2,3296.0,6.94855402]
[1633117382270,2.466,3296.2,3296.0,0.88549402]
[1633117382870,2.466,3296.2,3296.1,0.21322408]
[1633117383073,5.89960602,3296.2,3296.1,0.21322408]
[1633117383275,8.98610728,3296.2,3296.1,0.21322408]
[1633117383471,8.98567769,3296.2,3296.1,0.21322408]
[1633117384137,8.98567769,3296.2,3296.0,0.88549402]
[1633117384272,6.74561305,3296.2,3296.0,0.88549402]
[1633117384672,4.77613007,3296.2,3296.0,0.88549402]
[1633117385272,2.31613007,3296.2,3296.0,0.88549402]